[Event "Late-Titled-Tuesday-Blitz-January-30-2024"]
[Site "Chess.com"]
[Date "2024.01.30"]
[Round "4"]
[White "joksijoksi"]
[Black "Iana_Shirova"]
[Result "1/2-1/2"]
[WhiteElo "2521"]
[BlackElo "2351"]
[TimeControl "180+1"]
[EndTime "14:43:28 PST"]
[Termination "Game drawn - insufficient material"]

1. d4 {[%clk 0:02:58.6]} 1... d5 {[%clk 0:02:59.8]} 2. c4 {[%clk 0:02:57.8]}
2... dxc4 {[%clk 0:03:00]} 3. Nf3 {[%clk 0:02:56.9]} 3... c6 {[%clk 0:02:49.7]}
4. g3 {[%clk 0:02:51.9]} 4... g6 {[%clk 0:02:37.5]} 5. Bg2 {[%clk 0:02:50.4]}
5... Bg7 {[%clk 0:02:37.7]} 6. O-O {[%clk 0:02:50.4]} 6... Nh6 {[%clk
0:02:29.8]} 7. Na3 {[%clk 0:02:36.6]} 7... b5 {[%clk 0:02:26.3]} 8. Nxb5 {[%clk
0:02:20.7]} 8... cxb5 {[%clk 0:02:25.9]} 9. Ne5 {[%clk 0:02:19.6]} 9... Nf5
{[%clk 0:02:19.1]} 10. Bxa8 {[%clk 0:02:15.1]} 10... Nxd4 {[%clk 0:02:16.7]} 11.
Nf3 {[%clk 0:02:05]} 11... e5 {[%clk 0:01:33.8]} 12. Bg5 {[%clk 0:01:47.2]}
12... Nxf3+ {[%clk 0:01:27.4]} 13. exf3 {[%clk 0:01:39.7]} 13... Qxg5 {[%clk
0:01:26.8]} 14. Qd6 {[%clk 0:01:37.1]} 14... Qe7 {[%clk 0:01:15.9]} 15. Qxb8
{[%clk 0:01:32.8]} 15... O-O {[%clk 0:01:15.4]} 16. Rfe1 {[%clk 0:01:24.8]}
16... Bf5 {[%clk 0:00:53]} 17. Qb7 {[%clk 0:01:20.3]} 17... Qd8 {[%clk
0:00:48.6]} 18. Qxb5 {[%clk 0:01:10.1]} 18... Qxa8 {[%clk 0:00:48.4]} 19. Re3
{[%clk 0:01:08.1]} 19... Bh6 {[%clk 0:00:45.8]} 20. Ra3 {[%clk 0:01:06.8]} 20...
e4 {[%clk 0:00:38.9]} 21. Qxc4 {[%clk 0:01:01.9]} 21... exf3 {[%clk 0:00:37.3]}
22. Re1 {[%clk 0:00:56.6]} 22... Be6 {[%clk 0:00:34.3]} 23. Rxe6 {[%clk
0:00:53.1]} 23... fxe6 {[%clk 0:00:31.7]} 24. Qxe6+ {[%clk 0:00:54]} 24... Kh8
{[%clk 0:00:31.7]} 25. h4 {[%clk 0:00:52.3]} 25... Bg7 {[%clk 0:00:25.3]} 26. h5
{[%clk 0:00:46.6]} 26... Qe8 {[%clk 0:00:22.9]} 27. Qxe8 {[%clk 0:00:45.7]}
27... Rxe8 {[%clk 0:00:23.3]} 28. hxg6 {[%clk 0:00:44.5]} 28... hxg6 {[%clk
0:00:22.7]} 29. Rxf3 {[%clk 0:00:40.7]} 29... Bxb2 {[%clk 0:00:22.1]} 30. Kg2
{[%clk 0:00:39.8]} 30... Bg7 {[%clk 0:00:20.3]} 31. Rd3 {[%clk 0:00:38.6]} 31...
Re7 {[%clk 0:00:19.9]} 32. a4 {[%clk 0:00:36.8]} 32... a5 {[%clk 0:00:17.9]} 33.
Rd5 {[%clk 0:00:34.5]} 33... Ra7 {[%clk 0:00:16.3]} 34. f4 {[%clk 0:00:34.2]}
34... Kg8 {[%clk 0:00:16.4]} 35. Kf3 {[%clk 0:00:34.2]} 35... Kf7 {[%clk
0:00:16.6]} 36. g4 {[%clk 0:00:34.3]} 36... Bc3 {[%clk 0:00:16.7]} 37. g5 {[%clk
0:00:33.8]} 37... Bb4 {[%clk 0:00:16.3]} 38. Kg4 {[%clk 0:00:33.3]} 38... Re7
{[%clk 0:00:16.5]} 39. f5 {[%clk 0:00:31.2]} 39... Re4+ {[%clk 0:00:15.7]} 40.
Kf3 {[%clk 0:00:31.3]} 40... Re8 {[%clk 0:00:13.7]} 41. Kg4 {[%clk 0:00:23.3]}
41... gxf5+ {[%clk 0:00:13.2]} 42. Kxf5 {[%clk 0:00:23]} 42... Kg7 {[%clk
0:00:12.9]} 43. Rd7+ {[%clk 0:00:21.7]} 43... Re7 {[%clk 0:00:13.1]} 44. Rd5
{[%clk 0:00:21.5]} 44... Rf7+ {[%clk 0:00:12.7]} 45. Kg4 {[%clk 0:00:20.6]}
45... Kg6 {[%clk 0:00:12.3]} 46. Rb5 {[%clk 0:00:19.2]} 46... Rd7 {[%clk
0:00:12]} 47. Rb6+ {[%clk 0:00:18.9]} 47... Kg7 {[%clk 0:00:12]} 48. Kh5 {[%clk
0:00:18.5]} 48... Rc7 {[%clk 0:00:11.3]} 49. Rg6+ {[%clk 0:00:18.3]} 49... Kf7
{[%clk 0:00:10.8]} 50. Rf6+ {[%clk 0:00:18.7]} 50... Kg8 {[%clk 0:00:09.5]} 51.
Rg6+ {[%clk 0:00:19]} 51... Rg7 {[%clk 0:00:09.9]} 52. Ra6 {[%clk 0:00:19]}
52... Bd2 {[%clk 0:00:08.4]} 53. Ra8+ {[%clk 0:00:17.2]} 53... Kh7 {[%clk
0:00:07.5]} 54. Rd8 {[%clk 0:00:12.1]} 54... Rxg5+ {[%clk 0:00:07.7]} 55. Kh4
{[%clk 0:00:12.5]} 55... Rg7 {[%clk 0:00:08.3]} 56. Rxd2 {[%clk 0:00:12]} 56...
Rf7 {[%clk 0:00:07.9]} 57. Kg4 {[%clk 0:00:11.4]} 57... Kg7 {[%clk 0:00:08.2]}
58. Rd5 {[%clk 0:00:10.8]} 58... Ra7 {[%clk 0:00:08.2]} 59. Kf5 {[%clk
0:00:10.6]} 59... Kf7 {[%clk 0:00:08.7]} 60. Ke5 {[%clk 0:00:11]} 60... Ke7
{[%clk 0:00:09.3]} 61. Rb5 {[%clk 0:00:11.1]} 61... Kd7 {[%clk 0:00:09.7]} 62.
Kd5 {[%clk 0:00:11.6]} 62... Kc7 {[%clk 0:00:10.2]} 63. Kc5 {[%clk 0:00:11.4]}
63... Ra6 {[%clk 0:00:10.8]} 64. Rb2 {[%clk 0:00:11.1]} 64... Rc6+ {[%clk
0:00:11.3]} 65. Kd5 {[%clk 0:00:11.5]} 65... Rd6+ {[%clk 0:00:11.6]} 66. Ke5
{[%clk 0:00:11.7]} 66... Rb6 {[%clk 0:00:11.3]} 67. Rc2+ {[%clk 0:00:09.9]}
67... Rc6 {[%clk 0:00:11.6]} 68. Rf2 {[%clk 0:00:08.6]} 68... Rc4 {[%clk
0:00:11.8]} 69. Kd5 {[%clk 0:00:08.9]} 69... Rxa4 {[%clk 0:00:12]} 70. Rf7+
{[%clk 0:00:08.8]} 70... Kb6 {[%clk 0:00:11.8]} 71. Rf6+ {[%clk 0:00:09.2]}
71... Kb5 {[%clk 0:00:11.9]} 72. Rf8 {[%clk 0:00:06.6]} 72... Ra1 {[%clk
0:00:12.1]} 73. Rb8+ {[%clk 0:00:06.2]} 73... Ka4 {[%clk 0:00:12.5]} 74. Kc4
{[%clk 0:00:06.4]} 74... Rc1+ {[%clk 0:00:12.6]} 75. Kd3 {[%clk 0:00:06.7]}
75... Rc7 {[%clk 0:00:12.2]} 76. Rb2 {[%clk 0:00:05.2]} 76... Ka3 {[%clk
0:00:12.4]} 77. Rc2 {[%clk 0:00:05.4]} 77... Rd7+ {[%clk 0:00:12]} 78. Kc3
{[%clk 0:00:03.6]} 78... a4 {[%clk 0:00:12.3]} 79. Rc1 {[%clk 0:00:03.7]} 79...
Rc7+ {[%clk 0:00:12.6]} 80. Kd2 {[%clk 0:00:03.8]} 80... Rd7+ {[%clk 0:00:12.5]}
81. Kc2 {[%clk 0:00:04.2]} 81... Ka2 {[%clk 0:00:13]} 82. Re1 {[%clk 0:00:03.3]}
82... Rc7+ {[%clk 0:00:13]} 83. Kd2 {[%clk 0:00:03.4]} 83... a3 {[%clk
0:00:13.5]} 84. Re5 {[%clk 0:00:02.9]} 84... Rd7+ {[%clk 0:00:13.7]} 85. Kc2
{[%clk 0:00:02.9]} 85... Rc7+ {[%clk 0:00:13.9]} 86. Kd2 {[%clk 0:00:03.1]}
86... Kb2 {[%clk 0:00:14.4]} 87. Rb5+ {[%clk 0:00:03.4]} 87... Ka1 {[%clk
0:00:14.6]} 88. Kd1 {[%clk 0:00:03.5]} 88... Rc4 {[%clk 0:00:14.1]} 89. Rb3
{[%clk 0:00:03.3]} 89... Ka2 {[%clk 0:00:14.2]} 90. Rb5 {[%clk 0:00:03.5]} 90...
Rd4+ {[%clk 0:00:14.1]} 91. Kc2 {[%clk 0:00:03.5]} 91... Rc4+ {[%clk 0:00:14.6]}
92. Kd1 {[%clk 0:00:03.9]} 92... Rh4 {[%clk 0:00:14.4]} 93. Kc2 {[%clk
0:00:04.1]} 93... Rh2+ {[%clk 0:00:14.5]} 94. Kc1 {[%clk 0:00:04.4]} 94... Ka1
{[%clk 0:00:14.7]} 95. Rb6 {[%clk 0:00:04.3]} 95... Rh1+ {[%clk 0:00:14.3]} 96.
Kc2 {[%clk 0:00:04.5]} 96... Rh2+ {[%clk 0:00:14.8]} 97. Kc1 {[%clk 0:00:04.6]}
97... Rb2 {[%clk 0:00:14.2]} 98. Ra6 {[%clk 0:00:03.9]} 98... Ka2 {[%clk
0:00:14.3]} 99. Rc6 {[%clk 0:00:03.4]} 99... Rb3 {[%clk 0:00:13.8]} 100. Rc5
{[%clk 0:00:03]} 100... Rb4 {[%clk 0:00:13.7]} 101. Rc6 {[%clk 0:00:03.1]}
101... Kb3 {[%clk 0:00:14.3]} 102. Kb1 {[%clk 0:00:02.8]} 102... a2+ {[%clk
0:00:11.5]} 103. Ka1 {[%clk 0:00:03.2]} 103... Rh4 {[%clk 0:00:11.6]} 104. Rc1
{[%clk 0:00:02.7]} 104... Rh2 {[%clk 0:00:10.9]} 105. Rg1 {[%clk 0:00:02.9]}
105... Rc2 {[%clk 0:00:09.7]} 106. Rg3+ {[%clk 0:00:02.7]} 106... Kb4 {[%clk
0:00:09.4]} 107. Rg1 {[%clk 0:00:03.3]} 107... Re2 {[%clk 0:00:08.4]} 108. Rh1
{[%clk 0:00:03.5]} 108... Rg2 {[%clk 0:00:08.4]} 109. Rf1 {[%clk 0:00:03.7]}
109... Kc4 {[%clk 0:00:08.5]} 110. Re1 {[%clk 0:00:04.1]} 110... Kc3 {[%clk
0:00:08.6]} 111. Rf1 {[%clk 0:00:04.4]} 111... Kb3 {[%clk 0:00:09]} 112. Re1
{[%clk 0:00:04.6]} 112... Kc2 {[%clk 0:00:09.1]} 113. Rf1 {[%clk 0:00:04.9]}
113... Rd2 {[%clk 0:00:08.5]} 114. Rg1 {[%clk 0:00:04.9]} 114... Kc3 {[%clk
0:00:08.5]} 115. Rf1 {[%clk 0:00:05.2]} 115... Rd3 {[%clk 0:00:07.9]} 116. Rg1
{[%clk 0:00:05.4]} 116... Rd2 {[%clk 0:00:08.4]} 117. Rf1 {[%clk 0:00:05.6]}
117... Kd3 {[%clk 0:00:09.3]} 118. Rg1 {[%clk 0:00:05.8]} 118... Kc2 {[%clk
0:00:09.6]} 119. Rf1 {[%clk 0:00:05.9]} 119... Kc3 {[%clk 0:00:10.2]} 120. Rg1
{[%clk 0:00:06.2]} 120... Kb3 {[%clk 0:00:10.8]} 121. Rh1 {[%clk 0:00:06.4]}
121... Kc3 {[%clk 0:00:11.3]} 122. Rg1 {[%clk 0:00:06.7]} 122... Kc2 {[%clk
0:00:12]} 123. Rh1 {[%clk 0:00:06.6]} 123... Rd8 {[%clk 0:00:12.9]} 124. Rg1
{[%clk 0:00:06.6]} 124... Rb8 {[%clk 0:00:13.3]} 125. Rg2+ {[%clk 0:00:05.8]}
125... Kc1 {[%clk 0:00:13.4]} 126. Rg1+ {[%clk 0:00:06]} 126... Kc2 {[%clk
0:00:13.7]} 127. Rg2+ {[%clk 0:00:06.4]} 127... Kc3 {[%clk 0:00:14.2]} 128. Rg1
{[%clk 0:00:06.5]} 128... Ra8 {[%clk 0:00:12.3]} 129. Rg3+ {[%clk 0:00:06]}
129... Kd2 {[%clk 0:00:12.4]} 130. Rg2+ {[%clk 0:00:06.3]} 130... Kc1 {[%clk
0:00:12.9]} 131. Rg1+ {[%clk 0:00:06.5]} 131... Kc2 {[%clk 0:00:12.7]} 132. Rg2+
{[%clk 0:00:07.4]} 132... Kc3 {[%clk 0:00:13.2]} 133. Rg3+ {[%clk 0:00:08]}
133... Kd4 {[%clk 0:00:13.6]} 134. Rg4+ {[%clk 0:00:08.4]} 134... Ke3 {[%clk
0:00:14.1]} 135. Rg1 {[%clk 0:00:08.3]} 135... Kf2 {[%clk 0:00:14.3]} 136. Rh1
{[%clk 0:00:08.5]} 136... Kg2 {[%clk 0:00:14.5]} 137. Rc1 {[%clk 0:00:08.5]}
137... Kf2 {[%clk 0:00:15.2]} 138. Rd1 {[%clk 0:00:08.6]} 138... Ke2 {[%clk
0:00:15.4]} 139. Rh1 {[%clk 0:00:08.1]} 139... Rd8 {[%clk 0:00:14.8]} 140. Rh2+
{[%clk 0:00:07.5]} 140... Kd1 {[%clk 0:00:14.5]} 141. Rh1+ {[%clk 0:00:07.5]}
141... Kc2 {[%clk 0:00:14.6]} 142. Rh2+ {[%clk 0:00:08.3]} 142... Rd2 {[%clk
0:00:14.8]} 143. Rxd2+ {[%clk 0:00:08.3]} 143... Kxd2 {[%clk 0:00:15.7]} 144.
Kxa2 {[%clk 0:00:08.9]} 1/2-1/2

[Event "Late-Titled-Tuesday-Blitz-January-30-2024"]
[Site "Chess.com"]
[Date "2024.01.30"]
[Round "5"]
[White "guillembaches"]
[Black "carloseduar100"]
[Result "0-1"]
[WhiteElo "2527"]
[BlackElo "2328"]
[TimeControl "180+1"]
[EndTime "14:51:38 PST"]
[Termination "carloseduar100 won by resignation"]

1. d4 {[%clk 0:03:00.9]} 1... d5 {[%clk 0:02:59.8]} 2. Nf3 {[%clk 0:03:01.5]}
2... c6 {[%clk 0:02:59.8]} 3. Bg5 {[%clk 0:03:01.9]} 3... Bf5 {[%clk 0:02:59.3]}
4. Nbd2 {[%clk 0:03:02]} 4... Nd7 {[%clk 0:02:59.7]} 5. e3 {[%clk 0:03:02]} 5...
Ngf6 {[%clk 0:03:00.1]} 6. Bd3 {[%clk 0:03:01.9]} 6... Bg6 {[%clk 0:03:00.5]} 7.
O-O {[%clk 0:03:00.5]} 7... Qc7 {[%clk 0:03:00.6]} 8. Bf4 {[%clk 0:02:59.1]}
8... Qb6 {[%clk 0:02:59.5]} 9. Rb1 {[%clk 0:02:56.9]} 9... e6 {[%clk 0:02:59.5]}
10. Ne5 {[%clk 0:02:56.8]} 10... Nxe5 {[%clk 0:02:58.2]} 11. dxe5 {[%clk
0:02:51]} 11... Nd7 {[%clk 0:02:57.9]} 12. c4 {[%clk 0:02:48.4]} 12... Bxd3
{[%clk 0:02:52.2]} 13. cxd5 {[%clk 0:02:06]} 13... cxd5 {[%clk 0:02:49.2]} 14.
Nb3 {[%clk 0:02:06.3]} 14... Bxf1 {[%clk 0:02:46.7]} 15. Qxf1 {[%clk 0:02:06.1]}
15... Be7 {[%clk 0:02:44.7]} 0-1

[Event "Late-Titled-Tuesday-Blitz-January-30-2024"]
[Site "Chess.com"]
[Date "2024.01.30"]
[Round "5"]
[White "Hrant_ChessMood"]
[Black "blitis"]
[Result "1-0"]
[WhiteElo "2907"]
[BlackElo "2620"]
[TimeControl "180+1"]
[EndTime "14:51:49 PST"]
[Termination "Hrant_ChessMood won by resignation"]

1. Nf3 {[%clk 0:02:58]} 1... g6 {[%clk 0:02:55.9]} 2. e4 {[%clk 0:02:56.9]} 2...
Bg7 {[%clk 0:02:55.9]} 3. d4 {[%clk 0:02:56.2]} 3... d6 {[%clk 0:02:56.4]} 4.
Bc4 {[%clk 0:02:54.3]} 4... Nf6 {[%clk 0:02:56.2]} 5. Qe2 {[%clk 0:02:54.8]}
5... O-O {[%clk 0:02:55]} 6. e5 {[%clk 0:02:55.1]} 6... Nfd7 {[%clk 0:02:52.9]}
7. h4 {[%clk 0:02:49]} 7... Nb6 {[%clk 0:02:44.9]} 8. Bb3 {[%clk 0:02:45.3]}
8... c5 {[%clk 0:02:43.6]} 9. h5 {[%clk 0:02:41.1]} 9... cxd4 {[%clk 0:02:38.3]}
10. hxg6 {[%clk 0:02:39.1]} 10... hxg6 {[%clk 0:02:38.5]} 11. Qe4 {[%clk
0:02:25.5]} 11... d5 {[%clk 0:02:14]} 12. Qh4 {[%clk 0:02:22.9]} 12... Re8
{[%clk 0:02:14.5]} 13. Qh7+ {[%clk 0:02:20.7]} 13... Kf8 {[%clk 0:02:14.8]} 14.
Bh6 {[%clk 0:02:21.4]} 1-0

[Event "Late-Titled-Tuesday-Blitz-January-30-2024"]
[Site "Chess.com"]
[Date "2024.01.30"]
[Round "5"]
[White "BeardedNM"]
[Black "bn1462"]
[Result "0-1"]
[WhiteElo "2179"]
[BlackElo "1961"]
[TimeControl "180+1"]
[EndTime "14:53:37 PST"]
[Termination "bn1462 won by resignation"]

1. e4 {[%clk 0:03:00.9]} 1... c5 {[%clk 0:02:56.5]} 2. Nf3 {[%clk 0:03:00.2]}
2... Nc6 {[%clk 0:02:56.6]} 3. d4 {[%clk 0:03:00.6]} 3... cxd4 {[%clk
0:02:56.6]} 4. Nxd4 {[%clk 0:03:01.5]} 4... Nf6 {[%clk 0:02:56.8]} 5. Nc3 {[%clk
0:03:01.9]} 5... e5 {[%clk 0:02:57.1]} 6. Ndb5 {[%clk 0:03:02.6]} 6... d6 {[%clk
0:02:57]} 7. Bg5 {[%clk 0:03:03.2]} 7... a6 {[%clk 0:02:57.1]} 8. Na3 {[%clk
0:03:03.4]} 8... b5 {[%clk 0:02:57.4]} 9. Bxf6 {[%clk 0:03:03.8]} 9... gxf6
{[%clk 0:02:55.5]} 10. Nd5 {[%clk 0:03:04.7]} 10... Bg7 {[%clk 0:02:55.3]} 11.
Bd3 {[%clk 0:03:04.5]} 11... Ne7 {[%clk 0:02:54]} 12. Nxe7 {[%clk 0:03:05]}
12... Qxe7 {[%clk 0:02:53.8]} 13. O-O {[%clk 0:03:01.4]} 13... O-O {[%clk
0:02:52.2]} 14. c4 {[%clk 0:02:59.2]} 14... f5 {[%clk 0:02:46.3]} 15. exf5
{[%clk 0:02:41.2]} 15... e4 {[%clk 0:02:34.3]} 16. Re1 {[%clk 0:02:41.7]} 16...
Bxf5 {[%clk 0:02:32.4]} 17. Nc2 {[%clk 0:02:11.9]} 17... Bxb2 {[%clk 0:02:27.5]}
18. Rb1 {[%clk 0:02:10.3]} 18... Bc3 {[%clk 0:02:27.5]} 19. Ne3 {[%clk
0:01:57.8]} 19... exd3 {[%clk 0:02:12.7]} 20. Nxf5 {[%clk 0:01:43.4]} 20...
Qxe1+ {[%clk 0:02:09.6]} 21. Qxe1 {[%clk 0:01:43.7]} 21... Bxe1 {[%clk
0:02:10.3]} 22. Rxe1 {[%clk 0:01:42.9]} 22... bxc4 {[%clk 0:02:04.7]} 23. Re4
{[%clk 0:01:40]} 23... Rfe8 {[%clk 0:01:59.8]} 24. Rg4+ {[%clk 0:01:30.9]} 24...
Kf8 {[%clk 0:01:59.5]} 25. h4 {[%clk 0:01:29.1]} 25... Re1+ {[%clk 0:01:54.5]}
26. Kh2 {[%clk 0:01:29.2]} 26... d2 {[%clk 0:01:55.2]} 27. Ne3 {[%clk
0:01:26.3]} 27... Rxe3 {[%clk 0:01:50.3]} 0-1

[Event "Late-Titled-Tuesday-Blitz-January-30-2024"]
[Site "Chess.com"]
[Date "2024.01.30"]
[Round "5"]
[White "AsaHoffmann"]
[Black "annasargsyan_m"]
[Result "0-1"]
[WhiteElo "2338"]
[BlackElo "2539"]
[TimeControl "180+1"]
[EndTime "14:53:59 PST"]
[Termination "annasargsyan_m won by resignation"]

1. d4 {[%clk 0:02:48.2]} 1... d5 {[%clk 0:02:59.7]} 2. Bg5 {[%clk 0:02:46.2]}
2... c6 {[%clk 0:02:57.3]} 3. e3 {[%clk 0:02:44.7]} 3... Bf5 {[%clk 0:02:57.9]}
4. Bd3 {[%clk 0:02:44]} 4... Bxd3 {[%clk 0:02:57]} 5. Qxd3 {[%clk 0:02:43.2]}
5... Qb6 {[%clk 0:02:57.9]} 6. b3 {[%clk 0:02:42.1]} 6... Nd7 {[%clk 0:02:58.5]}
7. Nf3 {[%clk 0:02:40.9]} 7... e6 {[%clk 0:02:58.7]} 8. Nbd2 {[%clk 0:02:40.5]}
8... Ngf6 {[%clk 0:02:59.3]} 9. O-O {[%clk 0:02:39]} 9... Bd6 {[%clk 0:02:59.2]}
10. c4 {[%clk 0:02:37.5]} 10... Qc7 {[%clk 0:02:59.2]} 11. Rac1 {[%clk
0:02:30.6]} 11... O-O {[%clk 0:02:56.8]} 12. Rfe1 {[%clk 0:02:28.4]} 12... h6
{[%clk 0:02:54.2]} 13. Bh4 {[%clk 0:02:27.5]} 13... Rfe8 {[%clk 0:02:54.9]} 14.
Bg3 {[%clk 0:02:27.3]} 14... Bxg3 {[%clk 0:02:54.4]} 15. hxg3 {[%clk 0:02:26.3]}
15... Nf8 {[%clk 0:02:54.7]} 16. e4 {[%clk 0:02:24.5]} 16... dxe4 {[%clk
0:02:55.6]} 17. Nxe4 {[%clk 0:02:24.4]} 17... Nxe4 {[%clk 0:02:55.2]} 18. Qxe4
{[%clk 0:02:24.2]} 18... Rad8 {[%clk 0:02:55.7]} 19. Ne5 {[%clk 0:02:20.1]}
19... Nd7 {[%clk 0:02:53.1]} 20. Rcd1 {[%clk 0:02:13.5]} 20... Nxe5 {[%clk
0:02:51.9]} 21. dxe5 {[%clk 0:02:10.1]} 21... Rxd1 {[%clk 0:02:47.2]} 22. Rxd1
{[%clk 0:02:09.8]} 22... Rd8 {[%clk 0:02:48.1]} 23. Rd4 {[%clk 0:02:04.8]} 23...
Rxd4 {[%clk 0:02:43.1]} 24. Qxd4 {[%clk 0:02:04.5]} 24... Qa5 {[%clk 0:02:43.8]}
25. a4 {[%clk 0:01:59]} 25... Qb4 {[%clk 0:02:41.7]} 26. Qe3 {[%clk 0:01:51.8]}
26... a5 {[%clk 0:02:40.2]} 27. f4 {[%clk 0:01:50.6]} 27... b5 {[%clk
0:02:36.7]} 28. cxb5 {[%clk 0:01:45.5]} 28... cxb5 {[%clk 0:02:37.6]} 29. axb5
{[%clk 0:01:43]} 29... Qxb5 {[%clk 0:02:38.5]} 30. g4 {[%clk 0:01:39.5]} 30...
Qd5 {[%clk 0:02:36.5]} 31. Kh2 {[%clk 0:01:35.4]} 31... Qd1 {[%clk 0:02:34.6]}
32. Kg3 {[%clk 0:01:32.3]} 32... g6 {[%clk 0:02:29.3]} 33. f5 {[%clk 0:01:28.1]}
33... gxf5 {[%clk 0:02:18.1]} 34. gxf5 {[%clk 0:01:26.4]} 34... exf5 {[%clk
0:02:18.3]} 35. Qxh6 {[%clk 0:01:13]} 35... Qxb3+ {[%clk 0:02:17.3]} 36. Kh2
{[%clk 0:01:08.6]} 36... Qe6 {[%clk 0:02:15.8]} 37. Qg5+ {[%clk 0:01:02.4]}
37... Kh7 {[%clk 0:02:15.6]} 38. Qh5+ {[%clk 0:01:00.9]} 38... Qh6 {[%clk
0:02:15.5]} 39. Qxh6+ {[%clk 0:00:58.2]} 39... Kxh6 {[%clk 0:02:16.4]} 0-1

[Event "Late-Titled-Tuesday-Blitz-January-30-2024"]
[Site "Chess.com"]
[Date "2024.01.30"]
[Round "5"]
[White "djano"]
[Black "KamlaPasand"]
[Result "1-0"]
[WhiteElo "2631"]
[BlackElo "2480"]
[TimeControl "180+1"]
[EndTime "14:54:15 PST"]
[Termination "djano won by resignation"]

1. e4 {[%clk 0:03:00.9]} 1... e5 {[%clk 0:02:59.6]} 2. Nf3 {[%clk 0:02:59.8]}
2... Nc6 {[%clk 0:02:59.6]} 3. d4 {[%clk 0:02:59.5]} 3... exd4 {[%clk
0:02:59.1]} 4. Nxd4 {[%clk 0:03:00.4]} 4... Bc5 {[%clk 0:02:59.5]} 5. Nb3 {[%clk
0:03:00.5]} 5... Bb6 {[%clk 0:02:59.2]} 6. Nc3 {[%clk 0:03:01.1]} 6... Nf6
{[%clk 0:02:59]} 7. Bg5 {[%clk 0:02:58.6]} 7... h6 {[%clk 0:02:58.7]} 8. Bh4
{[%clk 0:02:58.3]} 8... g5 {[%clk 0:02:50.1]} 9. Bg3 {[%clk 0:02:58]} 9... d6
{[%clk 0:02:50.5]} 10. Qd2 {[%clk 0:02:48.6]} 10... Be6 {[%clk 0:02:50.1]} 11.
O-O-O {[%clk 0:02:47.4]} 11... Qd7 {[%clk 0:02:48.9]} 12. Nd5 {[%clk 0:02:37.3]}
12... Bxd5 {[%clk 0:02:47.3]} 13. exd5 {[%clk 0:02:37.3]} 13... Ne5 {[%clk
0:02:48]} 14. f4 {[%clk 0:02:03.4]} 14... gxf4 {[%clk 0:02:44.7]} 15. Bxf4
{[%clk 0:01:50.9]} 15... O-O-O {[%clk 0:02:44]} 16. Kb1 {[%clk 0:01:49.5]} 16...
Qf5 {[%clk 0:02:37.9]} 17. Bxe5 {[%clk 0:01:47.5]} 17... dxe5 {[%clk 0:02:37.2]}
18. Bc4 {[%clk 0:01:45]} 18... Ne4 {[%clk 0:02:33.3]} 19. Qd3 {[%clk 0:01:42]}
19... Qg6 {[%clk 0:02:29.2]} 20. Rhf1 {[%clk 0:01:19.5]} 20... Nf2 {[%clk
0:02:27.7]} 21. Qxg6 {[%clk 0:01:12.2]} 21... fxg6 {[%clk 0:02:26.5]} 22. Rd2
{[%clk 0:01:11.2]} 22... Ng4 {[%clk 0:02:25]} 23. Be2 {[%clk 0:00:49.1]} 23...
Ne3 {[%clk 0:02:21.5]} 24. Rf6 {[%clk 0:00:49.2]} 24... Nxd5 {[%clk 0:02:20.9]}
25. Rxg6 {[%clk 0:00:43.7]} 25... Nc3+ {[%clk 0:02:16.6]} 26. bxc3 {[%clk
0:00:43.4]} 26... Rxd2 {[%clk 0:02:13.8]} 27. Nxd2 {[%clk 0:00:44.3]} 27... Rf8
{[%clk 0:02:14.1]} 28. Bf3 {[%clk 0:00:41.9]} 28... Be3 {[%clk 0:02:12.9]} 29.
Ne4 {[%clk 0:00:39.9]} 29... Rd8 {[%clk 0:02:11.8]} 30. Kb2 {[%clk 0:00:37.8]}
1-0

[Event "Late-Titled-Tuesday-Blitz-January-30-2024"]
[Site "Chess.com"]
[Date "2024.01.30"]
[Round "5"]
[White "oskariot"]
[Black "pr1105"]
[Result "1-0"]
[WhiteElo "2755"]
[BlackElo "2439"]
[TimeControl "180+1"]
[EndTime "14:54:29 PST"]
[Termination "oskariot won by resignation"]

1. e4 {[%clk 0:03:00.9]} 1... e5 {[%clk 0:03:00.4]} 2. Nf3 {[%clk 0:03:00.9]}
2... Nc6 {[%clk 0:03:01.1]} 3. Nc3 {[%clk 0:03:01.6]} 3... Nf6 {[%clk
0:03:01.5]} 4. h3 {[%clk 0:03:02]} 4... d5 {[%clk 0:03:00.2]} 5. exd5 {[%clk
0:03:02.2]} 5... Nxd5 {[%clk 0:03:01.1]} 6. Bb5 {[%clk 0:03:02.7]} 6... Nxc3
{[%clk 0:02:59.5]} 7. bxc3 {[%clk 0:03:03.6]} 7... Bd6 {[%clk 0:02:59.9]} 8. O-O
{[%clk 0:03:04.3]} 8... O-O {[%clk 0:02:59.2]} 9. d4 {[%clk 0:03:04.9]} 9...
exd4 {[%clk 0:02:57.9]} 10. cxd4 {[%clk 0:03:05.8]} 10... Bf5 {[%clk 0:02:57.5]}
11. c4 {[%clk 0:03:05.5]} 11... a6 {[%clk 0:02:28.5]} 12. Ba4 {[%clk 0:03:01.5]}
12... h6 {[%clk 0:02:14.6]} 13. Bb2 {[%clk 0:02:56.5]} 13... Qf6 {[%clk
0:01:59.7]} 14. Qd2 {[%clk 0:02:51.5]} 14... Rad8 {[%clk 0:01:56.5]} 15. c5
{[%clk 0:02:04.3]} 15... Ne5 {[%clk 0:00:58.6]} 16. dxe5 {[%clk 0:01:31.7]}
16... Qg6 {[%clk 0:00:50.4]} 17. cxd6 {[%clk 0:01:20.1]} 17... Bxh3 {[%clk
0:00:49.9]} 18. Nh4 {[%clk 0:01:17.5]} 18... Qg4 {[%clk 0:00:50.3]} 19. Qd4
{[%clk 0:01:12.9]} 19... cxd6 {[%clk 0:00:47.4]} 20. Qxg4 {[%clk 0:01:08.7]}
20... Bxg4 {[%clk 0:00:48.3]} 1-0

[Event "Late-Titled-Tuesday-Blitz-January-30-2024"]
[Site "Chess.com"]
[Date "2024.01.30"]
[Round "5"]
[White "lluiss"]
[Black "tusplingher"]
[Result "0-1"]
[WhiteElo "2186"]
[BlackElo "2490"]
[TimeControl "180+1"]
[EndTime "14:54:32 PST"]
[Termination "tusplingher won by resignation"]

1. e4 {[%clk 0:02:21.4]} 1... c5 {[%clk 0:02:59.2]} 2. Nf3 {[%clk 0:02:19.1]}
2... d6 {[%clk 0:02:59.3]} 3. d4 {[%clk 0:02:16.2]} 3... Nf6 {[%clk 0:02:59.7]}
4. Nc3 {[%clk 0:02:14.2]} 4... cxd4 {[%clk 0:02:58.7]} 5. Nxd4 {[%clk
0:02:14.1]} 5... a6 {[%clk 0:02:59.4]} 6. Bg5 {[%clk 0:02:12.8]} 6... Nbd7
{[%clk 0:02:59]} 7. f4 {[%clk 0:02:11.7]} 7... Qc7 {[%clk 0:02:58]} 8. Qf3
{[%clk 0:02:07.8]} 8... e5 {[%clk 0:02:57.6]} 9. Nf5 {[%clk 0:02:05.4]} 9... h6
{[%clk 0:02:55.3]} 10. Bxf6 {[%clk 0:01:53.9]} 10... Nxf6 {[%clk 0:02:54.6]} 11.
O-O-O {[%clk 0:01:48.7]} 11... Be6 {[%clk 0:02:49.3]} 12. Bd3 {[%clk 0:01:35]}
12... h5 {[%clk 0:02:34.6]} 13. fxe5 {[%clk 0:01:20.7]} 13... dxe5 {[%clk
0:02:31.6]} 14. Rhe1 {[%clk 0:01:20.6]} 14... O-O-O {[%clk 0:02:29.5]} 15. Ne3
{[%clk 0:01:14.1]} 15... Bb4 {[%clk 0:02:21.3]} 16. Ned5 {[%clk 0:00:24.5]}
16... Bxd5 {[%clk 0:02:17]} 17. exd5 {[%clk 0:00:23.4]} 17... Bxc3 {[%clk
0:02:16.4]} 18. bxc3 {[%clk 0:00:23.1]} 18... Kb8 {[%clk 0:02:15.6]} 19. c4
{[%clk 0:00:21.1]} 19... Rhe8 {[%clk 0:02:12.7]} 20. Re2 {[%clk 0:00:19.3]}
20... Qa5 {[%clk 0:02:00.9]} 21. Kb1 {[%clk 0:00:07.1]} 21... Rd6 {[%clk
0:01:57.1]} 22. Ka1 {[%clk 0:00:05.1]} 22... Qc3+ {[%clk 0:01:56.5]} 0-1